bitfinex/quotes_BTCUSD_20241223
["timestamp","ask_amount","ask_price","bid_price","bid_amount"]
[1734932782684,0.00015745,95702.0,95701.0,0.6145008]
[1734932783401,0.00015745,95702.0,95701.0,0.6784716]
[1734932783812,0.00115745,95702.0,95701.0,0.6874716]
[1734932784183,0.00015745,95702.0,95701.0,0.6784716]
[1734932784593,0.00115745,95702.0,95701.0,0.6874716]
[1734932784841,0.00115745,95702.0,95701.0,0.6834716]
[1734932785199,0.00115745,95702.0,95701.0,0.6874716]
[1734932787956,0.00115745,95702.0,95701.0,0.78136831]
[1734932788456,0.00115745,95702.0,95701.0,0.90786831]
[1734932788860,0.00015745,95702.0,95701.0,0.8009716]
[1734932789069,0.00015745,95702.0,95701.0,0.90228]
[1734932789268,0.00015745,95702.0,95701.0,0.90628]
[1734932789745,0.00015745,95702.0,95701.0,1.04712507]
[1734932789949,0.00015745,95702.0,95701.0,1.04312507]
[1734932790168,0.00115745,95702.0,95701.0,1.05212507]
[1734932790394,0.00115745,95702.0,95701.0,1.05612507]
[1734932790601,0.00015745,95702.0,95701.0,1.04712507]
[1734932790833,0.00115745,95702.0,95701.0,1.14959395]
[1734932791150,0.00015745,95702.0,95701.0,1.1616471]
[1734932791367,0.00815745,95702.0,95701.0,1.1626471]
[1734932791781,0.00015745,95702.0,95701.0,1.1616471]
[1734932792075,0.00015745,95702.0,95701.0,0.92833315]
[1734932792274,0.00615745,95702.0,95701.0,0.92433315]
[1734932792668,0.00615745,95702.0,95701.0,0.92933315]
[1734932793165,0.00615745,95702.0,95701.0,0.92433315]
[1734932793518,0.00715745,95702.0,95701.0,0.92433315]
[1734932794135,0.00115745,95702.0,95701.0,0.92333315]
[1734932794733,0.00315745,95702.0,95701.0,0.92333315]
[1734932794985,0.00115745,95702.0,95701.0,0.92333315]
[1734932795369,0.00015745,95702.0,95701.0,0.92433315]
[1734932795804,0.00115745,95702.0,95701.0,0.92433315]
[1734932795983,0.00115745,95702.0,95701.0,0.90328]
[1734932796141,0.00015745,95702.0,95701.0,0.90328]
[1734932796586,0.00115745,95702.0,95701.0,0.90328]
[1734932796982,0.00015745,95702.0,95701.0,0.90328]
[1734932797185,0.00015745,95702.0,95701.0,0.90228]
[1734932797520,0.00315745,95702.0,95701.0,1.02528]
[1734932797863,0.00115745,95702.0,95701.0,1.02528]
[1734932798066,0.00115745,95702.0,95701.0,0.92628]
[1734932798274,0.00115745,95702.0,95701.0,0.90328]
[1734932798450,0.00115745,95702.0,95701.0,0.92467895]
[1734932798658,0.00015745,95702.0,95701.0,0.92467895]
[1734932798863,0.00115745,95702.0,95701.0,0.92467895]
[1734932799074,0.00115745,95702.0,95701.0,1.20596481]
[1734932799478,0.00015745,95702.0,95701.0,1.20596481]
[1734932799691,0.00115745,95702.0,95701.0,1.12059506]
[1734932799891,0.00115745,95702.0,95701.0,1.18456586]
[1734932800096,0.00115745,95702.0,95701.0,0.90328]
[1734932800298,0.00015745,95702.0,95701.0,0.8383092]
[1734932800804,0.00115745,95702.0,95701.0,0.8383092]
[1734932801032,0.00115745,95702.0,95701.0,0.5244716]
[1734932801206,0.00115745,95702.0,95701.0,0.4615008]
[1734932801406,0.00115745,95702.0,95701.0,0.4505455]
[1734932801612,0.00115745,95702.0,95701.0,0.4495455]
[1734932801812,0.00315745,95702.0,95701.0,0.4495455]
[1734932802243,0.00015745,95702.0,95701.0,0.4495455]
[1734932802485,0.00215745,95702.0,95701.0,0.4495455]
[1734932802686,0.08225745,95702.0,95701.0,0.4495455]
[1734932803089,0.08025745,95702.0,95701.0,0.4495455]
[1734932803230,0.08025745,95702.0,95701.0,0.4545455]
[1734932803868,0.18156585,95702.0,95701.0,0.4495455]
[1734932804248,0.18256585,95702.0,95701.0,0.4605455]
[1734932804450,0.18156585,95702.0,95701.0,0.4535455]
[1734932804856,0.18156585,95702.0,95701.0,0.4545455]
[1734932805056,0.18156585,95702.0,95701.0,0.4535455]
[1734932805480,0.18156585,95702.0,95701.0,0.4505455]
[1734932806050,0.18156585,95702.0,95701.0,0.4515455]
[1734932806482,0.18156585,95702.0,95701.0,0.4505455]
[1734932806669,0.21759505,95702.0,95701.0,0.4505455]
[1734932806868,0.21759505,95702.0,95701.0,0.4495455]
[1734932806998,0.21959505,95702.0,95701.0,0.4495455]
[1734932807194,0.21959505,95702.0,95701.0,0.3765455]
[1734932807564,0.21759505,95702.0,95701.0,0.3765455]
[1734932807766,0.22359505,95702.0,95701.0,0.3765455]
[1734932807934,0.21759505,95702.0,95701.0,0.3765455]
[1734932808444,0.21959505,95702.0,95701.0,0.3765455]
[1734932808645,0.21759505,95702.0,95701.0,0.3765455]
[1734932810168,0.22159505,95702.0,95701.0,0.3765455]
[1734932810708,0.21759505,95702.0,95701.0,0.3765455]
[1734932811067,0.21959505,95702.0,95701.0,0.3765455]
[1734932811266,0.21859505,95702.0,95701.0,0.3765455]
[1734932811673,0.22159505,95702.0,95701.0,0.3765455]
[1734932811875,0.21759505,95702.0,95701.0,0.3765455]
[1734932812103,0.21759505,95702.0,95701.0,0.3035455]
[1734932813335,0.21959505,95702.0,95701.0,0.3035455]
[1734932813695,0.21759505,95702.0,95701.0,0.3035455]
[1734932813903,0.22159505,95702.0,95701.0,0.3035455]
[1734932814555,0.22459505,95702.0,95701.0,0.3035455]
[1734932814974,0.22359505,95702.0,95701.0,0.3035455]
[1734932815174,0.21759505,95702.0,95701.0,0.3035455]
[1734932815620,0.21859505,95702.0,95701.0,0.3035455]
[1734932816158,0.21759505,95702.0,95701.0,0.3035455]
[1734932817242,0.22159505,95702.0,95701.0,0.2305455]
[1734932817631,0.21759505,95702.0,95701.0,0.2305455]
[1734932818110,0.21959505,95702.0,95701.0,0.2305455]
[1734932818375,0.18156585,95702.0,95701.0,0.2305455]
[1734932818616,0.18656585,95702.0,95701.0,0.2305455]
[1734932819009,0.18256585,95702.0,95701.0,0.2305455]
[1734932819224,0.18356585,95702.0,95701.0,0.2305455]
[1734932820139,0.10346585,95702.0,95701.0,0.2305455]
[1734932821324,0.10146585,95702.0,95701.0,0.2305455]
[1734932821700,0.10246585,95702.0,95701.0,0.2305455]
[1734932821895,0.10146585,95702.0,95701.0,0.2305455]
[1734932822857,0.10246585,95702.0,95701.0,0.2305455]
[1734932824371,0.10146585,95702.0,95701.0,0.2305455]
[1734932825028,0.10146585,95702.0,95701.0,0.2315455]
[1734932825279,0.10146585,95702.0,95701.0,0.2325455]
[1734932826426,0.00015745,95702.0,95701.0,0.2325455]
[1734932827302,0.00015745,95702.0,95701.0,0.2315455]
[1734932827507,0.00015745,95702.0,95701.0,0.2305455]
[1734932827701,0.00115745,95702.0,95701.0,0.2305455]
[1734932827911,0.00015745,95702.0,95701.0,0.2305455]
[1734932828289,0.00015745,95702.0,95701.0,0.2335455]
[1734932828489,0.00015745,95702.0,95701.0,0.2315455]
[1734932828689,0.00015745,95702.0,95701.0,0.3559455]
[1734932828891,0.00115745,95702.0,95701.0,0.3559455]
[1734932829105,0.00115745,95702.0,95701.0,0.5689163]
[1734932830461,0.00015745,95702.0,95701.0,0.5689163]
[1734932830879,0.00015745,95702.0,95701.0,0.5719163]
[1734932831090,0.00015745,95702.0,95701.0,0.57963346]
[1734932831521,0.00115745,95702.0,95701.0,0.58863346]
[1734932831726,0.00015745,95702.0,95701.0,0.58063346]
[1734932832067,0.00115745,95702.0,95701.0,0.58963346]
[1734932832253,0.00115745,95702.0,95701.0,0.58863346]
[1734932832650,0.00115745,95702.0,95701.0,0.59263346]
[1734932847700,0.00115745,95702.0,95701.0,0.2435455]
[1734932848927,0.00015745,95702.0,95701.0,0.2345455]
[1734932849129,0.00115745,95702.0,95701.0,0.2415455]
[1734932849541,0.00115745,95702.0,95701.0,0.2375455]
[1734932850071,0.00115745,95702.0,95701.0,0.2405455]
[1734932850461,0.00015745,95702.0,95701.0,0.2305455]
[1734932850607,0.00015745,95702.0,95701.0,0.2335455]
[1734932850807,0.00115745,95702.0,95701.0,0.2415455]
[1734932851821,0.07975745,95702.0,95701.0,0.2415455]
[1734932852659,0.18106585,95702.0,95701.0,0.2385455]
[1734932853053,0.18106585,95702.0,95701.0,0.2395455]
[1734932853533,0.18106585,95702.0,95701.0,0.2385455]
[1734932853733,0.18006585,95702.0,95701.0,0.2305455]
[1734932853902,0.18006585,95702.0,95701.0,0.2335455]
[1734932854224,0.18006585,95702.0,95701.0,0.2315455]
[1734932854423,0.18006585,95702.0,95701.0,0.2305455]
[1734932854622,0.31609505,95702.0,95701.0,0.2315455]
[1734932854917,0.34975725,95702.0,95701.0,0.2305455]
[1734932855252,0.34975725,95702.0,95701.0,0.2315455]
[1734932855480,0.34975725,95702.0,95701.0,0.2305455]
[1734932856030,0.37112011,95702.0,95701.0,0.2305455]
[1734932856851,0.41992011,95702.0,95701.0,0.2305455]
[1734932857024,0.56992011,95702.0,95701.0,0.1678515]
[1734932857366,0.56992011,95702.0,95701.0,0.07313551]
[1734932857502,0.57292011,95702.0,95701.0,0.07313551]
[1734932857710,0.57092011,95702.0,95701.0,8.55e-05]
[1734932858123,0.57692011,95702.0,95701.0,0.0010855]
[1734932859658,0.57692011,95702.0,95701.0,5e-07]
[1734932862636,0.57592011,95702.0,95701.0,5e-07]
[1734932863132,0.57692011,95702.0,95701.0,5e-07]
[1734932863661,0.57592011,95702.0,95701.0,5e-07]
[1734932863869,0.209034,95678.0,95677.0,8.55e-05]
[1734932864063,0.3103424,95678.0,95677.0,8.55e-05]
[1734932864861,0.209034,95678.0,95677.0,8.55e-05]
[1734932865073,0.209021,95684.0,95677.0,8.55e-05]
[1734932865224,0.002,95678.0,95677.0,8.55e-05]
[1734932865666,0.001,95678.0,95677.0,8.55e-05]
[1734932865867,0.001,95678.0,95677.0,0.2890195]
[1734932866231,0.209007,95691.0,95677.0,0.2890195]
[1734932866637,0.209007,95691.0,95677.0,0.2900195]
[1734932867054,0.209007,95691.0,95677.0,0.2910195]
[1734932867279,0.209007,95691.0,95677.0,0.2920195]
[1734932867749,0.209007,95691.0,95677.0,0.30297328]
[1734932867958,0.209007,95691.0,95677.0,0.30097328]
[1734932868302,0.209007,95691.0,95677.0,0.30297328]
[1734932869782,0.209007,95691.0,95677.0,0.09393928]
[1734932870214,0.048,95689.0,95677.0,0.0030855]
[1734932870417,0.20903,95680.0,95677.0,0.0030855]
[1734932870704,0.209034,95678.0,95677.0,0.0030855]
[1734932870901,0.3103424,95678.0,95677.0,0.0030855]
[1734932871108,0.3103424,95678.0,95677.0,0.0010855]
[1734932872073,0.3113424,95678.0,95677.0,0.0010855]
[1734932872278,0.3113424,95678.0,95677.0,8.55e-05]
[1734932873557,0.3103424,95678.0,95677.0,8.55e-05]
[1734932874088,0.3113424,95678.0,95677.0,8.55e-05]
[1734932874736,0.3103424,95678.0,95677.0,8.55e-05]
[1734932875207,0.3113424,95678.0,95677.0,8.55e-05]
[1734932875378,0.32181297,95678.0,95677.0,8.55e-05]
[1734932875981,0.40171297,95678.0,95677.0,8.55e-05]
[1734932876610,0.40271297,95678.0,95677.0,8.55e-05]
[1734932882206,0.19367897,95678.0,95650.0,0.01070263]
[1734932882413,0.19367897,95678.0,95642.0,0.15]
[1734932882414,0.1013084,95677.0,95655.0,0.0639708]
[1734932882814,0.209054,95669.0,95656.0,0.0792]
[1734932883478,0.209042,95675.0,95656.0,0.288282]
[1734932883630,0.209053,95670.0,95656.0,0.288282]
[1734932884060,0.20910652,95670.0,95656.0,0.288282]
[1734932884260,5.352e-05,95670.0,95656.0,0.0792]
[1734932884458,5.352e-05,95670.0,95665.0,0.0775]
[1734932884661,5.352e-05,95670.0,95666.0,0.209059]
[1734932885385,5.352e-05,95670.0,95667.0,0.0496]
[1734932885958,5.352e-05,95670.0,95668.0,0.209056]
[1734932886955,5.352e-05,95670.0,95669.0,0.29591601]
[1734932887160,5.352e-05,95670.0,95669.0,0.2948708]
[1734932887780,5.352e-05,95670.0,95669.0,0.3961792]
[1734932888244,0.00105352,95670.0,95669.0,0.4051792]
[1734932889026,5.352e-05,95670.0,95669.0,0.3961792]
[1734932889343,5.352e-05,95670.0,95669.0,0.4011792]
[1734932889795,5.352e-05,95670.0,95669.0,0.3961792]
[1734932890328,0.00105352,95670.0,95669.0,0.4051792]
[1734932890722,5.352e-05,95670.0,95669.0,0.3961792]
[1734932890923,5.352e-05,95670.0,95669.0,0.3991792]
[1734932891308,5.352e-05,95670.0,95669.0,0.2948708]
[1734932891791,5.352e-05,95670.0,95669.0,0.2988708]
[1734932891981,5.352e-05,95670.0,95669.0,0.2998708]
[1734932892553,5.352e-05,95670.0,95669.0,0.2958708]
[1734932892923,5.352e-05,95670.0,95669.0,0.2948708]
[1734932893371,5.352e-05,95670.0,95669.0,0.2958708]
[1734932893822,5.352e-05,95670.0,95669.0,0.3971792]
[1734932894021,5.352e-05,95670.0,95669.0,0.4011792]
[1734932894360,5.352e-05,95670.0,95669.0,0.3971792]
[1734932894786,5.352e-05,95670.0,95669.0,0.4001792]
[1734932895165,5.352e-05,95670.0,95669.0,0.3971792]
[1734932895567,5.352e-05,95670.0,95669.0,0.4001792]
[1734932895781,5.352e-05,95670.0,95669.0,0.3961792]
[1734932895956,5.352e-05,95670.0,95669.0,0.53782524]
[1734932896503,5.352e-05,95670.0,95669.0,0.53682524]
[1734932896833,5.352e-05,95670.0,95669.0,0.53782524]
[1734932897245,5.352e-05,95670.0,95669.0,0.4011792]
[1734932897455,5.352e-05,95670.0,95669.0,0.3971792]
[1734932898379,5.352e-05,95670.0,95669.0,0.4011792]
[1734932899162,5.352e-05,95670.0,95669.0,0.3297067]
[1734932900208,5.352e-05,95670.0,95669.0,0.2359]
[1734932900410,5.352e-05,95670.0,95669.0,0.001]
[1734932900869,5.352e-05,95670.0,95669.0,0.002]
[1734932901067,5.352e-05,95670.0,95669.0,0.001]
[1734932901295,0.20910652,95670.0,95669.0,0.002]
[1734932901645,0.29000652,95670.0,95669.0,0.002]
[1734932902195,0.209056,95668.0,95666.0,0.0938067]
[1734932902380,0.209071,95661.0,95660.0,0.01088368]
[1734932902677,0.209071,95661.0,95653.0,0.0938924]
[1734932902678,0.209086,95654.0,95653.0,0.0938924]
[1734932902877,0.3103944,95654.0,95653.0,0.0938924]
[1734932903100,0.209073,95660.0,95653.0,0.0938924]
[1734932903314,0.209084,95656.0,95653.0,0.0938924]
[1734932903499,0.209084,95656.0,95653.0,8.57e-05]
[1734932904224,0.209084,95656.0,95653.0,0.0030857]
[1734932904559,0.209084,95656.0,95653.0,8.57e-05]
[1734932904770,0.209084,95656.0,95653.0,0.0020857]
[1734932904970,0.209084,95656.0,95653.0,0.0070857]
[1734932905172,0.209084,95656.0,95653.0,0.0020857]
[1734932905367,0.209084,95656.0,95653.0,8.57e-05]
[1734932905590,0.209084,95656.0,95653.0,0.0030857]
[1734932906200,0.209084,95656.0,95653.0,0.0020857]
[1734932906404,0.209084,95656.0,95653.0,0.0030857]
[1734932906821,0.209084,95656.0,95653.0,0.0010857]
[1734932907235,0.209084,95656.0,95653.0,0.0030857]
[1734932907769,0.209084,95656.0,95653.0,0.0020857]
[1734932908185,0.209084,95656.0,95653.0,0.0030857]
[1734932908596,0.209084,95656.0,95653.0,0.0020857]
[1734932909012,0.209084,95656.0,95653.0,0.0030857]
[1734932909493,0.209084,95656.0,95653.0,0.0020857]
[1734932909690,0.209084,95656.0,95653.0,0.0030857]
[1734932910664,0.209084,95656.0,95653.0,0.0010857]
[1734932911013,0.209084,95656.0,95653.0,0.0020857]
[1734932911209,0.209084,95656.0,95653.0,8.57e-05]
[1734932911564,0.209075,95660.0,95653.0,8.57e-05]
[1734932911772,0.209078,95658.0,95653.0,8.57e-05]
[1734932913804,0.209054,95669.0,95653.0,8.57e-05]
[1734932914027,0.001,95660.0,95653.0,8.57e-05]
[1734932914229,0.209075,95659.0,95653.0,8.57e-05]
[1734932915012,0.497451,95659.0,95653.0,0.0010857]
[1734932915215,0.497451,95659.0,95653.0,0.0030857]
[1734932915419,0.497451,95659.0,95653.0,8.57e-05]
[1734932915848,0.497451,95659.0,95653.0,0.0010857]
[1734932915986,0.0001712,95658.0,95653.0,0.0010857]
[1734932917074,0.20908,95657.0,95653.0,0.0030857]
[1734932917489,0.0001712,95658.0,95653.0,8.57e-05]
[1734932918445,0.0001712,95658.0,95653.0,0.0040857]
[1734932918647,0.0001712,95658.0,95653.0,0.0010857]
[1734932918794,0.20908,95657.0,95653.0,8.57e-05]
[1734932918994,0.20908,95657.0,95653.0,0.0040857]
[1734932920245,0.20908,95657.0,95653.0,0.0030857]
[1734932920446,0.20908,95657.0,95653.0,8.57e-05]
[1734932920610,0.20908,95657.0,95653.0,0.0040857]
[1734932921019,0.20908,95657.0,95653.0,8.57e-05]
[1734932921229,0.20908,95657.0,95653.0,0.0030857]
[1734932921575,0.20908,95657.0,95653.0,0.0010857]
[1734932921708,0.20908,95657.0,95653.0,8.57e-05]
[1734932921905,0.0001712,95658.0,95653.0,0.0030857]
[1734932922111,0.0001712,95658.0,95654.0,0.209086]
[1734932923276,0.0001712,95658.0,95655.0,0.0803]
[1734932923443,0.0001712,95658.0,95656.0,0.209082]
[1734932924931,0.0001712,95658.0,95655.0,0.0803]
[1734932925133,0.0001712,95658.0,95656.0,0.002]
[1734932925385,0.0001712,95658.0,95656.0,0.007]
[1734932926356,0.0001712,95658.0,95656.0,0.005]
[1734932927480,0.0001712,95658.0,95657.0,0.20908]
[1734932927661,0.0001712,95658.0,95656.0,0.007]
[1734932929484,0.0001712,95658.0,95656.0,0.005]
[1734932929685,0.0001712,95658.0,95657.0,0.002]
[1734932930290,0.0001712,95658.0,95657.0,0.20908]
[1734932931080,0.0001712,95658.0,95657.0,0.21408]
[1734932931311,0.0001712,95658.0,95657.0,0.21608]
[1734932932080,0.0001712,95658.0,95657.0,0.4300508]
[1734932932279,0.0001712,95658.0,95657.0,0.5313592]
[1734932932524,0.0001712,95658.0,95657.0,0.6143592]
[1734932933699,0.0001712,95658.0,95657.0,0.6073592]
[1734932934019,0.0001712,95658.0,95657.0,0.6103592]
[1734932934174,0.0011712,95658.0,95657.0,0.6173592]
[1734932934379,0.0001712,95658.0,95657.0,0.6103592]
[1734932934722,0.0011712,95658.0,95657.0,0.6163592]
[1734932935981,0.0011712,95658.0,95657.0,0.6203592]
[1734932939970,0.0011712,95658.0,95657.0,0.7141659]
[1734932940944,0.0011712,95658.0,95657.0,0.6203592]
[1734932942647,0.0011712,95658.0,95657.0,0.37208]
[1734932943422,0.0011712,95658.0,95657.0,0.4360508]
[1734932947365,0.0011712,95658.0,95657.0,0.9587508]
[1734932948406,0.0011712,95658.0,95657.0,1.0406508]
[1734932948612,0.0011712,95658.0,95657.0,1.23577026]
[1734932948810,0.0011712,95658.0,95657.0,1.24121765]
[1734932949838,0.0011712,95658.0,95657.0,1.14340659]
[1734932950442,0.0011712,95658.0,95657.0,1.13440659]
[1734932951817,0.0001712,95658.0,95657.0,1.13440659]
[1734932951963,0.0031712,95658.0,95657.0,1.13440659]
[1734932952854,0.0041712,95658.0,95657.0,1.13440659]
[1734932953722,0.0011712,95658.0,95657.0,1.13440659]
[1734932954032,0.0041712,95658.0,95657.0,1.13440659]
[1734932958772,0.0001714,95678.0,95677.0,0.0639708]
[1734932958970,0.0001714,95678.0,95677.0,0.52536009]
[1734932959109,0.0001714,95678.0,95677.0,0.5243152]
[1734932959514,0.0001714,95678.0,95677.0,1.0469052]
[1734932960332,0.0001714,95678.0,95677.0,1.14067715]
[1734932960578,0.0001714,95678.0,95677.0,1.14967715]
[1734932960792,0.0001714,95678.0,95677.0,1.14067715]
[1734932961169,0.0001714,95678.0,95677.0,1.0469052]
[1734932961375,0.0001714,95678.0,95677.0,1.06260378]
[1734932961780,0.0001714,95678.0,95677.0,1.05960378]
[1734932961955,0.0001714,95678.0,95677.0,1.05760378]
[1734932962159,0.0001714,95678.0,95677.0,1.05860378]
[1734932962565,0.0001714,95678.0,95677.0,1.05760378]
[1734932962969,0.0001714,95678.0,95677.0,1.05860378]
[1734932963369,0.0001714,95678.0,95677.0,1.05960378]
[1734932963783,0.0001714,95678.0,95677.0,1.05860378]
[1734932964630,0.0001714,95678.0,95677.0,0.95729538]
[1734932964798,0.0001714,95678.0,95677.0,0.95629538]
[1734932965808,0.0001714,95678.0,95677.0,0.89232458]
[1734932967547,0.0001714,95678.0,95677.0,0.95629538]
[1734932967890,0.0001714,95678.0,95677.0,0.95729538]
[1734932968868,0.0001714,95678.0,95677.0,0.53428858]
[1734932969385,0.0001714,95678.0,95677.0,0.53328858]
[1734932969583,0.0001714,95678.0,95677.0,0.53428858]
[1734932970973,0.0001714,95678.0,95677.0,0.53328858]
[1734932971177,0.0031714,95678.0,95677.0,0.53328858]
[1734932971380,0.0011714,95678.0,95677.0,0.53328858]
[1734932971606,0.0001714,95678.0,95677.0,0.53328858]
[1734932971814,0.0001714,95678.0,95677.0,0.54128858]
[1734932972016,0.0001714,95678.0,95677.0,0.54528858]
[1734932972229,0.0001714,95678.0,95677.0,0.53728858]
[1734932972419,0.0011714,95678.0,95677.0,0.54228858]
[1734932972877,0.0011714,95678.0,95677.0,0.54728858]
[1734932974104,0.0001714,95678.0,95677.0,0.53328858]
[1734932974351,0.0011714,95678.0,95677.0,0.54628858]
[1734932975042,0.0011714,95678.0,95677.0,0.54228858]
[1734932975262,0.0011714,95678.0,95677.0,0.54528858]
[1734932975817,0.0001714,95678.0,95677.0,0.53328858]
[1734932976045,0.0001714,95678.0,95677.0,0.53928858]
[1734932976179,0.0001714,95678.0,95677.0,0.54328858]
[1734932977263,0.0001714,95678.0,95677.0,0.53728858]
[1734932977402,0.0794714,95678.0,95677.0,0.52259]
[1734932977621,0.1280714,95678.0,95677.0,0.53459]
[1734932977830,0.2283798,95678.0,95677.0,0.52559]
[1734932978236,0.2283798,95678.0,95677.0,0.52859]
[1734932978483,0.1270714,95678.0,95677.0,0.52459]
[1734932978843,0.1270714,95678.0,95677.0,0.52659]
[1734932979042,0.1270714,95678.0,95677.0,0.52459]
[1734932979398,0.1270714,95678.0,95677.0,0.52359]
[1734932980614,0.1270714,95678.0,95677.0,0.52459]
[1734932980785,0.1270714,95678.0,95677.0,0.52659]
[1734932980993,0.1270714,95678.0,95677.0,0.52459]
[1734932981190,0.1270714,95678.0,95677.0,0.52659]
[1734932984681,0.0794714,95678.0,95677.0,0.52259]
[1734932984886,0.0794714,95678.0,95677.0,0.52359]
[1734932984887,0.0001714,95678.0,95677.0,0.52359]
[1734932985479,0.0001714,95678.0,95677.0,0.52259]
[1734932985687,0.0001714,95678.0,95677.0,0.52459]
[1734932985838,0.0001714,95678.0,95677.0,0.52259]
[1734932987253,0.0001714,95678.0,95677.0,0.52659]
[1734932987376,0.0001714,95678.0,95677.0,0.52859]
[1734932987566,0.0001714,95678.0,95677.0,0.52459]
[1734932987767,0.0001714,95678.0,95677.0,0.52659]
[1734932987982,0.0001714,95678.0,95677.0,0.52559]
[1734932988423,0.0001714,95678.0,95677.0,0.52959]
[1734932988866,0.0001714,95678.0,95677.0,0.52559]
[1734932989167,0.0001714,95678.0,95677.0,0.52959]
[1734932990219,0.0001714,95678.0,95677.0,0.52659]
[1734932990574,0.0001714,95678.0,95677.0,0.52359]
[1734932990806,0.0001714,95678.0,95677.0,0.52559]
[1734932991005,0.0001714,95678.0,95677.0,0.52459]
[1734932991257,0.0001714,95678.0,95677.0,0.52259]
[1734932991457,0.0001714,95678.0,95677.0,0.52459]
[1734932992038,0.0001714,95678.0,95677.0,0.52359]
[1734932992218,0.0001714,95678.0,95677.0,0.52259]
[1734932993484,0.0001714,95678.0,95677.0,0.52459]
[1734932993655,0.0001714,95678.0,95677.0,0.52659]
[1734932994053,0.0001714,95678.0,95677.0,0.52459]
[1734932994248,0.0001714,95678.0,95677.0,0.52759]
[1734932994456,0.0001714,95678.0,95677.0,0.52559]
[1734932994876,0.0001714,95678.0,95677.0,0.52759]
[1734932996554,0.0001714,95678.0,95677.0,0.8671608]
[1734932997089,0.0001714,95678.0,95677.0,0.8641608]
[1734932997292,0.0001714,95678.0,95677.0,0.8621608]
[1734932997492,0.0001714,95678.0,95677.0,0.8651608]
[1734932997749,0.0001714,95678.0,95677.0,0.95693275]
[1734932997994,0.0001714,95678.0,95677.0,0.96093275]
[1734932998456,0.0001714,95678.0,95677.0,0.96393275]
[1734932998829,0.0001714,95678.0,95677.0,0.96093275]
[1734932999274,0.0001714,95678.0,95677.0,0.8621608]
[1734933000837,0.0001714,95678.0,95677.0,0.67259]
[1734933000970,0.0001714,95678.0,95677.0,0.52559]
[1734933002110,0.0031714,95678.0,95677.0,0.52559]
[1734933002313,0.0001714,95678.0,95677.0,0.52559]
[1734933002736,0.0759714,95678.0,95677.0,0.52559]
[1734933003755,0.0759714,95678.0,95677.0,0.53059]
[1734933004597,0.0759714,95678.0,95677.0,0.52759]
[1734933004898,0.0759714,95678.0,95677.0,0.52359]
[1734933006527,0.0759714,95678.0,95677.0,0.52259]
[1734933006749,0.0759714,95678.0,95677.0,0.52359]
[1734933007187,0.0001714,95678.0,95677.0,0.52359]
[1734933008474,0.0001714,95678.0,95677.0,0.52259]
[1734933009781,0.0001714,95678.0,95677.0,0.52459]
[1734933010547,0.0001714,95678.0,95677.0,0.7365608]
[1734933010755,0.0001714,95678.0,95677.0,0.9215692]
[1734933010962,0.0001714,95678.0,95677.0,0.9235692]
[1734933011134,0.0001714,95678.0,95677.0,0.9215692]
[1734933011336,0.0001714,95678.0,95677.0,0.9195692]
[1734933011536,0.0001714,95678.0,95677.0,0.9215692]
[1734933011803,0.0001714,95678.0,95677.0,0.9255692]
[1734933012199,0.0001714,95678.0,95677.0,0.9215692]
[1734933012799,0.0001714,95678.0,95677.0,1.10911311]
[1734933013010,0.0001714,95678.0,95677.0,1.10711311]
[1734933013212,0.0001714,95678.0,95677.0,1.11011311]
[1734933013753,0.0001714,95678.0,95677.0,0.9245692]
[1734933014023,0.0011714,95678.0,95677.0,0.9195692]
[1734933014550,0.0031714,95678.0,95677.0,0.9195692]
[1734933014751,0.0021714,95678.0,95677.0,0.9195692]
[1734933015100,0.0001714,95678.0,95677.0,0.9195692]
[1734933016382,0.0001712,95701.0,95700.0,0.208986]
[1734933017119,0.0001712,95701.0,95700.0,0.4229568]
[1734933017424,0.0001712,95701.0,95700.0,0.5242652]
[1734933017589,0.00022474,95701.0,95700.0,0.5242652]
[1734933017801,0.00022474,95701.0,95700.0,0.5282652]
[1734933017962,0.00022474,95701.0,95700.0,0.5352652]
[1734933018172,0.00022474,95701.0,95700.0,0.5282652]
[1734933018375,0.00022474,95701.0,95700.0,0.61811934]
[1734933018573,0.00022474,95701.0,95700.0,0.5332652]
[1734933018777,0.00022474,95701.0,95700.0,0.53471113]
[1734933019187,0.00222474,95701.0,95700.0,0.67649234]
[1734933019592,0.00222474,95701.0,95700.0,1.20396234]
[1734933019988,0.00222474,95701.0,95700.0,1.06318113]
[1734933020419,0.00022474,95701.0,95700.0,1.05718113]
[1734933020819,0.00322474,95701.0,95700.0,1.05718113]
[1734933021228,0.00222474,95701.0,95700.0,1.05718113]
[1734933021425,0.00022474,95701.0,95700.0,1.05718113]
[1734933021709,0.00122474,95701.0,95700.0,1.05718113]
[1734933022024,0.00322474,95701.0,95700.0,0.95587273]
[1734933022800,0.00322474,95701.0,95700.0,0.89190193]
[1734933023097,0.00222474,95701.0,95700.0,0.68291593]
[1734933023438,0.00122474,95701.0,95700.0,0.68291593]
[1734933023647,0.00322474,95701.0,95700.0,0.68291593]
[1734933023867,0.00222474,95701.0,95700.0,0.53291593]
[1734933024097,0.00122474,95701.0,95700.0,0.52247]
[1734933024321,0.00122474,95701.0,95700.0,0.52347]
[1734933024322,0.00322474,95701.0,95700.0,0.52347]
[1734933024859,0.00222474,95701.0,95700.0,0.52947]
[1734933025265,0.00022474,95701.0,95700.0,0.52247]
[1734933026103,0.00022474,95701.0,95700.0,0.52647]
[1734933026662,0.00022474,95701.0,95700.0,0.52247]
[1734933026908,0.00022474,95701.0,95700.0,0.52347]
[1734933027235,0.00022474,95701.0,95700.0,0.52447]
[1734933027821,0.00022474,95701.0,95700.0,0.52247]
[1734933028138,0.00022474,95701.0,95700.0,0.52447]
[1734933029112,0.00022474,95701.0,95700.0,0.52547]
[1734933029526,0.00022474,95701.0,95700.0,0.52247]
[1734933029728,0.00022474,95701.0,95700.0,0.52647]
[1734933029904,0.00022474,95701.0,95700.0,0.52947]
[1734933030318,0.00022474,95701.0,95700.0,0.53347]
[1734933036478,0.00022474,95701.0,95700.0,0.53047]
[1734933036713,0.00022474,95701.0,95700.0,0.52247]
[1734933036913,0.00022474,95701.0,95700.0,0.52647]
[1734933037312,0.00022474,95701.0,95700.0,0.52447]
[1734933037560,0.00022474,95701.0,95700.0,0.52547]
[1734933038147,0.00022474,95701.0,95700.0,0.52347]
[1734933038359,0.00022474,95701.0,95700.0,0.52447]
[1734933038946,0.00022474,95701.0,95700.0,0.52247]
[1734933039365,0.00022474,95701.0,95700.0,0.52647]
[1734933039572,0.00022474,95701.0,95700.0,0.52447]
[1734933039766,0.00022474,95701.0,95700.0,0.52647]
[1734933040008,0.00022474,95701.0,95700.0,0.7404408]
[1734933040130,0.00022474,95701.0,95700.0,0.7394408]
[1734933040331,0.00022474,95701.0,95700.0,0.7424408]
[1734933040642,0.00022474,95701.0,95700.0,0.7394408]
[1734933041381,0.00022474,95701.0,95700.0,0.67247]
[1734933041734,0.00022474,95701.0,95700.0,0.67547]
[1734933042013,0.00022474,95701.0,95700.0,0.67947]